bitfinex-derivatives/quotes_SOLF0:USTF0_20260311
["timestamp","ask_amount","ask_price","bid_price","bid_amount"]
[1773191292444,10.444,86.165,86.13,3.44936093]
[1773191292946,4.29634662,86.177,86.13,3.44936093]
[1773191293142,10.444,86.168,86.13,3.44936093]
[1773191293348,4.29634662,86.167,86.13,3.44936093]
[1773191297959,3.44936093,86.16,86.11,3.44936093]
[1773191298160,4.29695877,86.159,86.11,3.44936093]
[1773191298953,14.74295877,86.15,86.11,3.44936093]
[1773191300358,4.28612441,86.145,86.11,3.44936093]
[1773191305561,4.28612441,86.145,86.11,3.44834078]
[1773191306463,10.447,86.142,86.1,3.44834078]
[1773191307163,4.26791932,86.139,86.1,3.44834078]
[1773191308059,4.26751034,86.135,86.09,3.44834078]
[1773191308458,4.26751034,86.135,86.091,10.453]
[1773191312868,10.447,86.141,86.091,10.453]
[1773191313064,4.2675217,86.15,86.11,3.44834078]
[1773191315267,4.2674333,86.144,86.09,3.44834078]
[1773191315469,4.26939054,86.139,86.09,3.44834078]
[1773191316466,4.26939054,86.134,86.09,3.44834078]
[1773191317671,4.27150697,86.132,86.08,3.44834078]
[1773191318371,4.27150697,86.129,86.081,10.454]
[1773191320471,4.27150697,86.129,86.09,3.44834078]
[1773191324683,4.2605253,86.127,86.09,3.44834078]
[1773191326382,10.449,86.125,86.09,3.44834078]
[1773191326682,4.26733899,86.124,86.09,3.44834078]
[1773191334186,10.449,86.123,86.09,3.44834078]
[1773191334388,14.71306895,86.123,86.09,3.44834078]
[1773191334585,4.26406895,86.122,86.09,3.44834078]
[1773191334788,4.26406895,86.122,86.08,3.44834078]
[1773191336983,4.26406895,86.122,86.09,3.44834078]
[1773191338591,4.26258839,86.12,86.08,3.44834078]
[1773191338889,4.26258839,86.12,86.073,279.33134889]
[1773191339194,4.26258839,86.119,86.073,279.33134889]
[1773191340486,4.26149917,86.109,86.05,3.44834078]
[1773191340685,4.26149917,86.099,86.05,3.44834078]
[1773191340884,20.896,86.136,86.005,221.83957784]
[1773191340885,4.26149917,86.119,86.07,3.44834078]
[1773191341096,4.26149917,86.11,86.08,3.44834078]
[1773191342496,4.24740827,86.121,86.08,3.44834078]
[1773191344400,4.26859904,86.119,86.08,3.44834078]
[1773191345495,4.26850431,86.115,86.07,3.44834078]
[1773191345696,4.26850431,86.115,86.06,3.44834078]
[1773191346101,4.26850431,86.097,86.05,3.44834078]
[1773191346502,4.26850431,86.097,86.042,10.459]
[1773191346701,20.895,86.138,86.06,3.44834078]
[1773191346702,4.26850431,86.092,86.06,3.44834078]
[1773191347203,4.26850431,86.092,86.05,3.44834078]
[1773191350209,20.895,86.138,86.005,214.28157873]
[1773191350210,4.2620026,86.104,86.07,3.44834078]
[1773191350408,4.2620026,86.117,86.07,3.44834078]
[1773191350705,4.2620026,86.115,86.07,3.44834078]
[1773191352311,4.2620026,86.115,86.06,3.44834078]
[1773191352514,4.27409466,86.108,86.06,3.44834078]
[1773191353813,4.27652236,86.105,86.05,3.44834078]
[1773191354018,4.27652236,86.099,86.05,3.44834078]
[1773191354216,4.27652236,86.099,86.04,3.44834078]
[1773191354713,10.454,86.085,86.04,3.44834078]
[1773191354914,4.27652236,86.084,86.04,3.44834078]
[1773191355117,20.896,86.136,86.022,2.02057737]
[1773191355118,4.27652236,86.073,86.03,3.44834078]
[1773191355419,4.27652236,86.073,85.997,28.64157873]
[1773191355420,4.27668284,86.069,86.02,3.44834078]
[1773191356018,20.901,86.114,86.004,2.02216244]
[1773191356019,4.27668284,86.068,86.03,3.44834078]
[1773191356217,4.27668284,86.082,86.04,3.44834078]
[1773191358121,20.896,86.137,86.06,3.44834078]
[1773191358122,4.26038543,86.094,86.06,3.44834078]
[1773191358321,4.26038543,86.094,86.05,3.44834078]
[1773191358521,4.26038543,86.094,86.06,3.44834078]
[1773191360113,10.452,86.103,86.06,3.44834078]
[1773191360518,4.25962737,86.102,86.06,3.44834078]
[1773191362823,4.25962737,86.102,86.061,10.457]
[1773191363419,4.25962737,86.102,86.06,3.44834078]
[1773191367024,4.25962737,86.102,86.07,3.44834078]
[1773191367219,4.30592552,86.113,86.08,3.44834078]
[1773191367624,4.30592552,86.113,86.08,3.45042146]
[1773191371225,4.33781596,86.124,86.09,3.45042146]
[1773191371624,4.33781596,86.124,86.08,13.90442146]
[1773191373426,4.35068369,86.12,86.08,3.45042146]
[1773191374132,10.45,86.119,86.071,10.455]
[1773191374424,4.35029808,86.118,86.071,10.455]
[1773191375429,4.35123631,86.116,86.071,10.455]
[1773191379224,4.3513956,86.112,86.07,3.45042146]
[1773191379536,4.35119074,86.109,86.06,3.45042146]
[1773191379730,4.35119074,86.108,86.061,10.457]
[1773191379930,4.35119074,86.119,86.08,3.45042146]
[1773191381730,4.35119074,86.119,86.07,3.45042146]
[1773191382131,4.35297524,86.116,86.06,3.45042146]
[1773191383133,4.35297524,86.116,86.034,20.92]
[1773191383134,4.35297524,86.116,86.07,3.45042146]
[1773191383335,4.35297524,86.111,86.07,3.45042146]
[1773191384434,4.3531705,86.109,86.07,3.45042146]
[1773191397739,4.3531705,86.109,86.068,10.456]
[1773191397740,4.35131116,86.12,86.08,3.45042146]
[1773191399351,4.35131116,86.12,86.08,13.90442146]
[1773191402147,4.36889886,86.133,86.1,3.45042146]
[1773191402347,4.36889886,86.144,86.11,3.45042146]
[1773191402547,21.57447874,86.197,86.033,198.91857784]
[1773191402548,4.36889886,86.169,86.12,3.45042146]
[1773191403352,4.36889886,86.165,86.12,3.45042146]
[1773191404558,4.36889886,86.165,86.13,3.45042146]
[1773191407161,20.877,86.212,86.071,286.18786086]
[1773191407162,4.3998754,86.177,86.14,3.45042146]
[1773191410258,4.34456559,86.176,86.13,3.45042146]
[1773191410460,4.34456559,86.176,86.077,28.72400995]
[1773191410461,4.34456559,86.169,86.12,3.45042146]
[1773191412465,4.36341169,86.157,86.12,3.45042146]
[1773191413067,4.36341169,86.175,86.13,3.45042146]
[1773191413956,4.36272237,86.171,86.12,3.45042146]
[1773191415564,4.36272237,86.169,86.12,3.45042146]
[1773191417258,4.360637,86.167,86.12,3.45042146]
[1773191418665,4.35892062,86.162,86.12,3.45042146]
[1773191420271,4.35907591,86.159,86.13,3.45042146]
[1773191422671,4.35907591,86.159,86.122,10.449]
[1773191426174,4.35907591,86.159,86.13,3.45042146]
[1773191426874,14.80521773,86.169,86.13,3.45042146]
[1773191427271,4.36121773,86.168,86.13,3.45042146]
[1773191427574,4.36121773,86.168,86.122,10.449]
[1773191427972,4.36121773,86.168,86.13,3.44700168]
[1773191428184,4.34906685,86.166,86.13,3.44700168]
[1773191430274,4.34906685,86.166,86.122,10.449]
[1773191433179,4.34906685,86.166,86.13,3.44700168]
[1773191433377,4.34656467,86.177,86.14,3.44700168]
[1773191433687,4.34656467,86.177,86.098,34.85]
[1773191433882,4.34656467,86.177,86.14,3.44700168]
[1773191434187,4.34656467,86.177,86.13,3.44700168]
[1773191434578,4.34656467,86.177,86.12,3.44700168]
[1773191435475,4.34674887,86.168,86.12,3.44700168]
[1773191436289,4.34946202,86.164,86.12,3.44700168]
[1773191436689,4.34946202,86.164,86.065,28.72400995]
[1773191436690,4.34946202,86.152,86.11,3.44700168]
[1773191437281,4.34946202,86.163,86.12,3.44700168]
[1773191437781,4.34946202,86.163,86.11,3.44700168]
[1773191438186,4.33541346,86.152,86.11,3.44700168]
[1773191439488,14.78141346,86.148,86.11,3.44700168]
[1773191442088,4.33740366,86.147,86.11,3.44700168]
[1773191442885,4.33740366,86.147,86.11,13.89800168]
[1773191443081,4.33740366,86.147,86.11,3.44700168]
[1773191448398,4.32166528,86.159,86.12,3.44700168]
[1773191453003,4.31835161,86.156,86.12,3.44700168]
[1773191455397,4.31593346,86.152,86.103,10.452]
[1773191455606,4.31593346,86.152,86.11,3.44700168]
[1773191456508,4.3160042,86.15,86.11,3.44700168]
[1773191456706,4.3160042,86.15,86.111,10.451]
[1773191457002,4.3160042,86.166,86.12,3.44700168]
[1773191457506,4.31621576,86.161,86.121,10.449]
[1773191457906,4.31621576,86.161,86.12,3.44700168]
[1773191460107,4.30136592,86.171,86.14,3.44700168]
[1773191460313,4.30136592,86.199,86.14,3.44700168]
[1773191460509,4.30136592,86.197,86.14,3.44700168]
[1773191460709,4.30136592,86.195,86.15,3.44700168]
[1773191461009,4.30136592,86.193,86.15,3.44700168]
[1773191461608,10.441,86.192,86.15,3.44700168]
[1773191461809,3.44700168,86.19,86.14,3.44700168]
[1773191462011,4.29671779,86.189,86.14,3.44700168]
[1773191462711,4.29671779,86.179,86.13,3.44700168]
[1773191462911,4.29671779,86.179,86.12,3.44700168]
[1773191464112,4.29671779,86.179,86.13,3.44700168]
[1773191464303,10.443,86.172,86.13,3.44700168]
[1773191464509,4.28712317,86.171,86.13,3.44700168]
[1773191464913,4.28712317,86.171,86.14,3.44700168]
[1773191468816,4.28712317,86.171,86.13,13.89500168]
[1773191471518,4.28712317,86.171,86.14,3.44700168]
[1773191475618,4.26455371,86.169,86.12,3.44700168]
[1773191476522,4.26455371,86.169,86.13,3.44700168]
[1773191476713,4.26455371,86.165,86.13,3.44700168]
[1773191477523,4.26455371,86.165,86.12,3.44700168]
[1773191478321,10.444,86.163,86.12,3.44700168]
[1773191478522,4.2887965,86.162,86.12,3.44700168]
[1773191478823,4.2887965,86.162,86.11,3.44700168]
[1773191480518,4.28942535,86.158,86.11,3.44700168]
[1773191482026,4.28942535,86.158,86.12,3.44700168]
[1773191482623,4.30050746,86.156,86.12,3.44700168]
[1773191483830,4.30050746,86.156,86.112,10.45]
[1773191486630,4.30050746,86.156,86.12,3.44700168]
[1773191487731,4.30050746,86.156,86.12,3.44763519]
[1773191490929,4.29844465,86.152,86.076,28.72400995]
[1773191491131,3.73465949,86.15,86.073,2.99061554]
[1773191491335,3.44763519,86.11,86.073,2.99061554]
[1773191491532,3.73465949,86.119,86.073,2.99061554]
[1773191491927,3.73465949,86.117,86.073,2.99061554]
[1773191492136,3.44763519,86.12,86.073,2.99061554]
[1773191492137,3.73465949,86.112,86.073,2.99061554]
[1773191492330,3.73465949,86.109,86.06,3.44763519]
[1773191492530,3.73465949,86.107,86.06,3.44763519]
[1773191492733,3.73465949,86.105,86.06,3.44763519]
[1773191495439,3.73465949,86.079,86.005,2.84183842]
[1773191495644,3.73465949,86.039,85.992,2.84183842]
[1773191500745,3.44763519,86.06,86.001,2.91655511]
[1773191500953,3.44763519,86.06,86.011,2.91655511]
[1773191502245,7.18229468,86.06,86.011,2.91655511]
[1773191502644,3.73465949,86.059,86.011,2.91655511]
[1773191504845,3.73465949,86.073,86.031,2.91558588]
[1773191505246,3.73465949,86.069,86.018,2.91558588]
[1773191505445,3.73465949,86.059,86.018,2.91558588]
[1773191506249,3.73465949,86.059,86.004,2.90741128]
[1773191507949,3.44763519,86.05,86.004,2.90741128]
[1773191508253,3.87643106,86.049,86.004,2.90741128]
[1773191509048,7.32406625,86.04,86.004,2.90741128]
[1773191511255,3.87643106,86.04,86.004,2.90741128]
[1773191515457,3.81092166,86.059,86.02,3.44763519]
[1773191515656,3.81092166,86.059,86.011,2.94551226]
[1773191518559,3.81092166,86.056,86.01,3.44763519]
[1773191519864,3.44763519,86.05,86.0,3.44763519]
[1773191520064,3.81092166,86.049,86.0,3.44763519]
[1773191521363,3.81092166,86.048,86.0,3.44763519]
[1773191521569,3.81092166,86.039,85.98,3.44763519]
[1773191521769,3.81092166,86.059,86.01,3.44763519]
[1773191522067,3.81092166,86.054,86.01,3.44763519]
[1773191522269,3.81092166,86.054,86.001,2.94445466]
[1773191523465,3.81092166,86.045,86.001,2.94445466]
[1773191523665,3.81092166,86.045,86.01,3.44763519]
[1773191526563,3.81092166,86.045,86.001,2.94445466]
[1773191533276,3.81092166,86.045,86.002,13.37825633]
[1773191535168,9.72300466,86.044,86.002,13.37825633]
[1773191535476,13.53392632,86.043,86.003,2.92020585]
[1773191535669,9.72300466,86.042,86.003,2.92020585]
[1773191535868,9.72300466,86.041,86.003,2.92020585]
[1773191536070,9.72300466,86.04,86.003,2.92020585]
[1773191536271,9.72300466,86.039,86.003,2.92020585]
[1773191536467,9.72300466,86.038,86.003,2.92020585]
[1773191536774,9.72300466,86.037,86.003,2.92020585]
[1773191536973,9.72300466,86.036,86.003,2.92020585]
[1773191537176,3.81092166,86.043,86.003,2.92020585]
[1773191537177,9.73736943,86.035,86.003,2.92020585]
[1773191537375,3.81092166,86.043,86.003,2.92020585]
[1773191537376,9.73736943,86.034,86.003,2.92020585]
[1773191537575,3.81092166,86.043,86.003,2.92020585]
[1773191537776,3.81092166,86.041,86.003,2.92020585]
[1773191537972,9.73736943,86.04,86.003,2.92020585]
[1773191538275,9.73736943,86.039,86.003,2.92020585]
[1773191538475,9.73736943,86.038,86.003,2.92020585]
[1773191538672,9.73736943,86.037,86.003,2.92020585]
[1773191538873,9.73736943,86.036,86.003,2.92020585]
[1773191539072,9.73736943,86.035,86.003,2.92020585]
[1773191539274,3.81092166,86.041,86.003,2.92020585]
[1773191539275,9.73736943,86.034,86.003,2.92020585]
[1773191539470,9.73736943,86.033,86.003,2.92020585]
[1773191539670,9.73736943,86.032,86.003,2.92020585]
[1773191539977,9.73736943,86.031,86.003,2.92020585]
[1773191540277,9.73736943,86.03,86.003,2.92020585]
[1773191540474,9.73736943,86.029,86.003,2.92020585]
[1773191540675,9.73736943,86.028,86.003,2.92020585]
[1773191540876,9.73736943,86.027,86.003,2.92020585]
[1773191541177,9.73736943,86.026,86.003,2.92020585]
[1773191541474,9.73736943,86.025,86.003,2.92020585]
[1773191541675,0.00036943,86.024,86.003,2.92020585]
[1773191541976,3.81092166,86.041,86.003,2.92020585]
[1773191542871,3.81092166,86.041,86.0,3.44763519]
[1773191542872,3.84628903,86.039,85.99,3.44763519]
[1773191543172,3.84628903,86.037,85.985,2.95586]
[1773191543372,3.84628903,86.035,85.985,2.95586]
[1773191543572,3.84628903,86.033,85.985,2.95586]
[1773191543772,3.84628903,86.029,85.985,2.95586]
[1773191544478,3.84628903,86.024,85.985,2.95586]
[1773191545074,3.84628903,86.024,85.98,3.44763519]
[1773191545275,3.84628903,86.024,85.99,3.44763519]
[1773191548383,3.84628903,86.024,85.984,10.466]
[1773191548979,3.84628903,86.036,86.0,3.44763519]
[1773191549681,3.84628903,86.036,86.0,3.45723974]
[1773191551589,3.84628903,86.051,86.01,3.45723974]
[1773191551787,9.52555138,86.05,86.02,3.45723974]
[1773191552083,3.84628903,86.048,86.02,3.45723974]
[1773191552678,3.84628903,86.048,86.011,3.04110678]
[1773191553289,9.52662778,86.047,86.011,3.04110678]
[1773191553587,9.62975334,86.046,86.011,3.04110678]
[1773191553783,9.62975334,86.045,86.011,3.04110678]
[1773191553992,9.62975334,86.044,86.02,3.45723974]
[1773191554190,9.62975334,86.043,86.02,3.45723974]
[1773191554388,9.62975334,86.042,86.02,3.45723974]
[1773191554588,9.62975334,86.041,86.02,3.45723974]
[1773191554890,9.62975334,86.04,86.02,3.45723974]
[1773191555084,9.62975334,86.039,86.02,3.45723974]
[1773191555288,9.62975334,86.038,86.02,3.45723974]
[1773191555492,9.62975334,86.037,86.02,3.45723974]
[1773191555791,9.62975334,86.036,86.02,3.45723974]
[1773191555992,3.84628903,86.048,86.02,3.45723974]
[1773191556187,9.62892547,86.047,86.02,3.45723974]
[1773191556489,9.62892547,86.046,86.02,6.48959827]
[1773191556689,9.62892547,86.045,86.02,6.48959827]
[1773191556890,9.62892547,86.044,86.02,6.48959827]
[1773191557091,9.62892547,86.043,86.02,6.48959827]
[1773191557291,9.62892547,86.042,86.02,6.48959827]
[1773191557492,9.62892547,86.041,86.02,6.48959827]
[1773191557692,9.62892547,86.04,86.02,6.48959827]
[1773191557892,9.62892547,86.039,86.02,6.48959827]
[1773191558095,3.84628903,86.059,86.02,6.48959827]
[1773191558394,3.84628903,86.057,86.02,6.48959827]
[1773191558692,3.84628903,86.055,86.02,6.48959827]
[1773191558893,19.15524719,86.054,86.02,6.48959827]
[1773191559099,19.15524719,86.053,86.02,6.48959827]
[1773191559298,19.15524719,86.052,86.02,6.48959827]
[1773191559492,9.62909872,86.051,86.02,6.48959827]
[1773191559691,9.62909872,86.05,86.02,3.03235853]
[1773191559897,3.84628903,86.048,86.01,13.92023974]
[1773191560098,13.47538775,86.047,86.01,13.92023974]
[1773191560298,9.62909872,86.046,86.01,13.92023974]
[1773191560498,9.62909872,86.045,86.01,13.92023974]
[1773191560799,9.62909872,86.044,86.01,13.92023974]
[1773191560999,9.62909872,86.043,86.01,13.92023974]
[1773191561192,9.62909872,86.042,86.01,13.92023974]
[1773191561398,9.62909872,86.041,86.01,13.92023974]
[1773191561599,9.62909872,86.04,86.01,13.92023974]
[1773191561899,3.84628903,86.047,86.01,13.92023974]
[1773191562100,9.57550815,86.046,86.01,13.92023974]
[1773191562403,9.57550815,86.045,86.02,3.45723974]
[1773191562594,9.57550815,86.044,86.02,3.45723974]
[1773191562798,9.57550815,86.043,86.02,3.45723974]
[1773191563001,9.57550815,86.042,86.02,3.45723974]
[1773191563206,9.57550815,86.041,86.02,3.45723974]
[1773191563509,9.57550815,86.04,86.02,3.45723974]
[1773191563696,9.57550815,86.039,86.02,3.45723974]
[1773191563894,9.57550815,86.038,86.02,3.45723974]
[1773191564095,9.57550815,86.037,86.02,3.45723974]
[1773191564303,9.57550815,86.036,86.02,3.45723974]
[1773191564504,9.57550815,86.035,86.02,3.45723974]
[1773191564706,3.84628903,86.047,86.02,3.45723974]
[1773191565006,9.57706117,86.046,86.02,3.45723974]
[1773191565305,9.57706117,86.045,86.02,3.45723974]
[1773191565504,3.84628903,86.047,86.02,3.45723974]
[1773191566006,9.5773047,86.046,86.02,3.45723974]
[1773191566200,9.5773047,86.045,86.02,3.45723974]
[1773191566400,9.5773047,86.044,86.02,3.45723974]
[1773191566605,9.5773047,86.043,86.02,3.45723974]
[1773191566803,0.0003047,86.042,86.021,3.71329738]
[1773191567007,3.84628903,86.079,86.031,3.71329738]
[1773191567212,3.84628903,86.079,86.041,3.71329738]
[1773191567412,3.84628903,86.079,86.05,3.45723974]
[1773191568310,3.84628903,86.079,86.041,3.71329738]
[1773191568808,3.84628903,86.079,86.033,10.46]
[1773191569011,3.84628903,86.079,86.04,3.45723974]
[1773191570107,3.84628903,86.079,86.04,7.35889871]
[1773191570307,3.90841054,86.091,86.05,3.45723974]
[1773191574915,3.90841054,86.087,86.041,3.90165897]
[1773191576410,14.36241054,86.084,86.041,3.90165897]
[1773191577911,3.90841054,86.083,86.041,3.90165897]
[1773191579812,3.90841054,86.083,86.051,3.90165897]
[1773191580813,3.45723974,86.1,85.996,20.929]
[1773191580814,3.90841054,86.105,86.061,3.90165897]
[1773191581116,3.90841054,86.103,86.061,3.90165897]
[1773191582211,3.90841054,86.103,86.048,3.90165897]
[1773191582416,3.90841054,86.089,86.04,3.45723974]
[1773191583209,3.90841054,86.086,86.041,3.90165897]
[1773191586011,3.90841054,86.083,86.041,3.90165897]
[1773191587118,3.90841054,86.081,86.041,3.90165897]
[1773191595925,3.90841054,86.089,86.051,3.90165897]
[1773191596723,3.90841054,86.087,86.051,3.90165897]
[1773191603333,13.39555055,86.086,86.051,3.90165897]
[1773191603634,3.95869768,86.086,86.051,3.90165897]
[1773191604333,13.39771466,86.085,86.051,3.90165897]
[1773191604536,3.95869768,86.085,86.051,3.90165897]
[1773191605240,3.95869768,86.099,86.061,3.8497274]
[1773191605439,3.95869768,86.11,86.071,3.8497274]
[1773191605642,3.95869768,86.108,86.061,3.8497274]
[1773191605834,3.95869768,86.106,86.061,3.8497274]
[1773191606142,3.95869768,86.104,86.061,3.8497274]
[1773191606337,3.95869768,86.102,86.061,3.8497274]
[1773191608140,9.44423452,86.101,86.061,3.8497274]
[1773191608338,3.95869768,86.102,86.061,3.8497274]
[1773191608533,13.4029322,86.101,86.061,3.8497274]
[1773191608839,3.95869768,86.101,86.061,3.8497274]
[1773191609142,9.44700374,86.1,86.061,3.8497274]
[1773191609338,3.95869768,86.101,86.061,3.8497274]
[1773191609537,9.44700374,86.1,86.061,3.8497274]
[1773191609740,3.95869768,86.101,86.061,3.8497274]
[1773191610040,9.44700635,86.1,86.061,3.8497274]
[1773191610239,9.45056422,86.099,86.061,3.8497274]
[1773191610435,9.45056422,86.098,86.061,3.8497274]
[1773191610636,3.95869768,86.101,86.061,3.8497274]
[1773191610840,9.45056422,86.1,86.061,3.8497274]
[1773191611042,9.45056422,86.099,86.061,3.8497274]
[1773191611234,9.45056422,86.098,86.061,3.8497274]
[1773191611440,9.45056422,86.097,86.061,3.8497274]
[1773191611640,3.95869768,86.101,86.061,3.8497274]
[1773191611942,9.45387158,86.1,86.061,3.8497274]
[1773191612142,9.45387158,86.099,86.061,3.8497274]
[1773191612336,9.45387158,86.098,86.061,3.8497274]
[1773191612645,3.95869768,86.101,86.061,3.8497274]
[1773191612646,9.45387158,86.097,86.061,3.8497274]
[1773191612832,9.45387158,86.096,86.061,3.8497274]
[1773191613033,9.45387158,86.095,86.061,3.8497274]
[1773191613237,3.95869768,86.101,86.061,3.8497274]
[1773191613438,9.45248612,86.1,86.063,3.8497274]
[1773191613737,9.45248612,86.099,86.063,3.8497274]
[1773191613939,9.45248612,86.098,86.063,3.8497274]
[1773191614242,9.45248612,86.097,86.063,3.8497274]
[1773191614439,9.45248612,86.096,86.063,3.8497274]
[1773191614640,3.95869768,86.101,86.063,3.8497274]
[1773191614839,9.45233588,86.1,86.063,3.8497274]
[1773191615041,9.45233588,86.099,86.063,3.8497274]
[1773191615243,3.95869768,86.101,86.063,3.8497274]
[1773191615244,9.45233588,86.098,86.063,3.8497274]
[1773191615441,9.45233588,86.097,86.063,3.8497274]
[1773191615641,9.45233588,86.096,86.063,3.8497274]
[1773191615940,3.95869768,86.101,86.063,3.8497274]
[1773191616243,9.45189912,86.1,86.063,3.8497274]
[1773191616432,9.45189912,86.099,86.063,3.8497274]
[1773191616633,9.45189912,86.098,86.063,3.8497274]
[1773191616837,9.45189912,86.097,86.063,3.8497274]
[1773191617042,3.95869768,86.112,86.071,3.8497274]
[1773191617237,9.44998397,86.111,86.071,3.8497274]
[1773191617438,3.95869768,86.109,86.071,3.8497274]
[1773191617639,9.44998397,86.108,86.071,3.8497274]
[1773191617940,9.44998397,86.107,86.071,3.8497274]
[1773191618143,3.95869768,86.109,86.071,3.8497274]
[1773191618344,9.44618622,86.108,86.072,10.455]
[1773191618643,3.95869768,86.109,86.072,14.3047274]
[1773191618644,9.44618622,86.107,86.072,14.3047274]
[1773191618846,3.95869768,86.109,86.072,14.3047274]
[1773191619144,9.44618622,86.108,86.072,14.3047274]
[1773191619345,3.95869768,86.109,86.072,14.3047274]
[1773191619543,13.40336878,86.108,86.072,14.3047274]
[1773191619744,3.95869768,86.108,86.073,3.8497274]
[1773191620238,3.95869768,86.108,86.075,3.8497274]
[1773191620547,3.95869768,86.121,86.081,3.8497274]
[1773191620739,9.47174849,86.12,86.081,3.8497274]
[1773191620946,9.47174849,86.119,86.081,3.8497274]
[1773191621238,9.47174849,86.118,86.081,3.8497274]
[1773191621447,9.47174849,86.117,86.081,3.8497274]
[1773191621739,3.95869768,86.121,86.081,3.8497274]
[1773191621946,9.46843549,86.12,86.081,3.8497274]
[1773191622140,9.46843549,86.119,86.081,3.8497274]
[1773191622347,9.46843549,86.119,86.074,10.455]
[1773191622348,3.95869768,86.115,86.071,3.8497274]
[1773191622539,3.95869768,86.115,86.08,3.45216709]
[1773191622745,3.95869768,86.115,86.012,35.95100096]
[1773191622746,3.95869768,86.149,86.091,3.8497274]
[1773191622944,3.95869768,86.134,86.091,3.8497274]
[1773191623148,3.95869768,86.132,86.091,3.8497274]
[1773191623344,3.95869768,86.13,86.091,3.8497274]
[1773191624348,3.95869768,86.13,86.077,10.455]
[1773191624550,3.95869768,86.128,86.071,3.8497274]
[1773191624749,3.95869768,86.126,86.081,3.8497274]
[1773191625148,3.95869768,86.126,86.09,3.45216709]
[1773191626654,3.95869768,86.126,86.083,3.8497274]
[1773191630760,3.7945393,86.122,86.083,3.8497274]
[1773191630962,3.7945393,86.119,86.07,3.98475125]
[1773191631664,3.7945393,86.11,86.07,3.98475125]
[1773191633856,3.7945393,86.106,86.06,3.45216709]
[1773191634064,3.7945393,86.106,86.059,3.98475125]
[1773191635157,3.45216709,86.11,86.062,3.98475125]
[1773191635158,3.7945393,86.103,86.062,3.98475125]
[1773191636464,3.7945393,86.103,86.065,10.456]
[1773191637662,3.7945393,86.103,86.066,3.98475125]
[1773191637863,10.452,86.103,86.066,3.98475125]
[1773191638066,3.7945393,86.102,86.066,3.98475125]
[1773191640563,3.7945393,86.102,86.07,3.45216709]
[1773191642869,3.7945393,86.102,86.071,3.98475125]
[1773191643065,3.7945393,86.116,86.081,3.98475125]
[1773191643269,3.7945393,86.139,86.09,3.45216709]
[1773191643462,3.7945393,86.137,86.09,3.45216709]
[1773191643658,3.7945393,86.135,86.09,3.45216709]
[1773191644466,3.7945393,86.127,86.09,3.45216709]
[1773191645172,3.7945393,86.127,86.09,7.43691834]
[1773191645569,3.7945393,86.127,86.09,3.98475125]
[1773191646171,3.7945393,86.127,86.035,28.77891328]
[1773191646172,3.7945393,86.149,86.101,3.98475125]
[1773191646365,3.45216709,86.16,86.101,3.98475125]
[1773191646366,3.7945393,86.147,86.101,3.98475125]
[1773191646572,3.7945393,86.145,86.101,3.98475125]
[1773191646867,284.76133045,86.177,86.091,3.98475125]
[1773191646868,3.7945393,86.129,86.091,3.98475125]
[1773191647066,31.72569887,86.17,86.111,3.98475125]
[1773191647067,13.07828092,86.169,86.111,3.98475125]
[1773191647268,3.7945393,86.167,86.111,3.98475125]
[1773191647465,3.7945393,86.159,86.111,3.98475125]
[1773191647660,3.7945393,86.157,86.111,3.98475125]
[1773191647965,3.7945393,86.155,86.111,3.98475125]
[1773191648472,3.7945393,86.15,86.111,3.98475125]
[1773191650370,3.7945393,86.145,86.11,3.45216709]
[1773191651467,3.7945393,86.142,86.11,3.45216709]
[1773191651662,3.7945393,86.142,86.1,3.45216709]
[1773191652673,3.7945393,86.14,86.1,3.45216709]
[1773191652863,3.7945393,86.138,86.1,3.45216709]
[1773191653172,3.7945393,86.136,86.1,3.45216709]
[1773191654272,3.7945393,86.148,86.103,3.98475125]
[1773191654471,0.00052706,86.147,86.121,3.98475125]
[1773191654677,3.7945393,86.175,86.14,3.45216709]
[1773191655083,3.7945393,86.175,86.131,3.98475125]
[1773191657474,3.7945393,86.175,86.141,3.98475125]
[1773191657668,10.83869887,86.211,86.09,34.85]
[1773191657669,3.7945393,86.209,86.151,3.98475125]
[1773191657873,3.7945393,86.199,86.15,3.45216709]
[1773191658073,3.7945393,86.218,86.17,3.45216709]
[1773191658374,3.7945393,86.209,86.15,3.45216709]
[1773191658576,3.7945393,86.189,86.14,3.45216709]
[1773191659072,3.7945393,86.189,86.141,3.98475125]
[1773191660079,3.7945393,86.189,86.16,3.45216709]
[1773191660572,3.7945393,86.189,86.141,3.89586765]
[1773191661378,3.8430253,86.188,86.141,3.89586765]
[1773191662381,3.8430253,86.188,86.14,3.45216709]
[1773191662582,3.8430253,86.188,86.131,3.89586765]
[1773191663281,3.8430253,86.188,86.14,3.45216709]
[1773191663579,3.8430253,86.185,86.14,7.34803474]
[1773191664573,10.441,86.194,86.151,3.89586765]
[1773191665480,3.8430253,86.193,86.151,3.89586765]
[1773191667678,3.8430253,86.188,86.151,3.89586765]
[1773191668387,3.45216709,86.19,86.134,3.89586765]
[1773191668388,3.8430253,86.184,86.134,3.89586765]
[1773191668683,3.8430253,86.179,86.134,3.89586765]
[1773191670178,20.875,86.223,86.122,3.89586765]